Workbook

Sheet Sheet1 (hidden)
F7: 设计建筑（kWh） | G7: 设计建筑（kWh/m2 . a） | H7: 基准建筑（kWh/m2 . a） | N7: 设计建筑（kWh） | O7: 设计建筑（kWh/m2 . a） | P7: 基准建筑（kWh/m2 . a）
E8: 分类 | F8: 电耗 | I8: 电耗 | J8: 一次能源消耗 | M8: 分类 | N8: 电耗 | Q8: 电耗 | R8: 一次能源消耗
D9: 7314.07 | E9: 供暖 | F9: 401767.47 | G9: =F9/D9 -> 54.93076632 | I9: 1119484.5 | J9: =I9/D9 -> 153.0590355 | L9: 1092.4 | M9: 供暖 | N9: 44742 | O9: =N9/L9 -> 40.95752472 | Q9: 157474.12 | R9: =Q9/L9 -> 144.1542658
D10: 7314.07 | E10: 制冷 | F10: 126043.55 | G10: =F10/D9 -> 17.23302484 | I10: 113280.29 | J10: 15.48799642 | L10: 1092.4 | M10: 制冷 | N10: 27212.7 | O10: =N10/L9 -> 24.91093006 | Q10: 37957.07 | R10: 34.74649396
D11: 7314.07 | E11: 照明 | F11: 96574.88 | G11: =F11/D9 -> 13.20398629 | I11: 124191.72 | J11: 16.97983749 | L11: 1092.4 | M11: 照明 | N11: 30280.05 | O11: =N11/L9 -> 27.7188301 | Q11: 40717.11 | R11: 37.27307763
E12: 总计（一次能源） | F12: =SUM(F9:F11) -> 624385.9 | G12: 85.36777745 | J12: 185.5268694 | M12: 总计（一次能源） | N12: =SUM(N9:N11) -> 102234.75 | O12: 93.58728488 | R12: 216.1738374
E13: 相对节能率 η=（E0-E）/E0 | F13: =(J12-G12)/J12 -> 0.5398629983 | M13: 相对节能率 η=（E0-E）/E0 | N13: =(R12-O12)/R12 -> 0.5670739531

Sheet Sheet2 (hidden)

Sheet Sheet1 (2)
H3: 线性传热系数Ψ
F4: 序号 | G4: 外墙-楼板（WF） | H4: 外墙-挑空楼板(WA) | I4: 门窗左右(WS) | J4: 门窗上口(WU)
F5: 1 | G5: 0.07 | H5: 0.08 | I5: 0.1 | J5: 0.05
F6: 2 | G6: 0.09 | H6: 0.198 | I6: 0.14 | J6: 0.04
F7: 3 | G7: 0.13 | H7: 0.43
F8: 4 | G8: 0.13
F9: 5 | G9: 0.06
F10: 6 | G10: 0.09
